bitfinex/quotes_SOLUSD_20250714
["timestamp","ask_amount","ask_price","bid_price","bid_amount"]
[1752534099414,3.4981334,162.29,162.27,0.03]
[1752534099618,3.4981334,162.28,162.27,0.03]
[1752534099911,35.3581334,162.28,162.27,0.03]
[1752534101317,41.5203222,162.28,162.27,0.03]
[1752534101527,35.3581334,162.28,162.27,0.03]
[1752534102025,41.5203222,162.28,162.27,0.03]
[1752534103010,43.4912209,162.28,162.27,0.03]
[1752534104029,38.0221888,162.28,162.27,0.03]
[1752534104228,43.4912209,162.28,162.27,0.03]
[1752534105127,38.0221888,162.28,162.27,0.03]
[1752534105426,43.4912209,162.28,162.27,0.03]
[1752534113218,69.4912209,162.28,162.27,0.03]
[1752534117933,43.4912209,162.28,162.27,0.03]
[1752534118134,43.4912209,162.28,162.26,0.03]
[1752534118135,16.78468397,162.27,162.26,0.03]
[1752534118309,22.95371607,162.27,162.26,0.03]
[1752534119427,29.11628462,162.27,162.26,0.03]
[1752534121242,154.03294835,162.26,162.25,0.03]
[1752534121419,202.65763232,162.26,162.25,0.03]
[1752534122038,208.12666442,162.26,162.25,0.03]
[1752534122627,202.65763232,162.26,162.25,0.03]
[1752534122826,208.12666442,162.26,162.25,0.03]
[1752534123344,60.25666442,162.26,162.25,0.03]
[1752534124134,173.86999999,162.23,162.21,0.2]
[1752534124349,184.47903209,162.22,162.21,0.2]
[1752534124523,185.17903209,162.22,162.21,0.2]
[1752534125643,191.34350009,162.22,162.21,0.2]
[1752534126224,179.00999999,162.22,162.21,0.2]
[1752534126423,147.86999999,162.22,162.21,0.2]
[1752534126638,179.00999999,162.22,162.21,0.2]
[1752534126936,185.17446799,162.22,162.21,0.2]
[1752534127138,185.87446799,162.22,162.21,0.2]
[1752534127346,191.34350009,162.22,162.21,0.2]
[1752534129044,43.4735001,162.22,162.21,0.2]
[1752534130647,37.3090321,162.22,162.21,0.2]
[1752534132148,31.84,162.22,162.21,0.2]
[1752534132330,37.3090321,162.22,162.21,0.2]
[1752534132946,31.84,162.22,162.21,0.2]
[1752534134750,37.3090321,162.22,162.21,0.2]
[1752534136926,31.84,162.22,162.21,0.2]
[1752534140646,37.3090321,162.22,162.21,0.2]
[1752534145057,43.4735001,162.22,162.21,0.2]
[1752534147134,37.3090321,162.22,162.21,0.2]
[1752534148982,43.4735001,162.22,162.21,0.2]
[1752534153288,37.3090321,162.22,162.21,0.2]
[1752534153492,0.06,162.26,162.21,11.83376136]
[1752534153696,0.06,162.26,162.23,5.4690321]
[1752534153997,0.06,162.26,162.25,5.4690321]
[1752534154296,31.16,162.26,162.24,5.4690321]
[1752534157990,31.16,162.26,162.24,11.63258288]
[1752534158496,31.16,162.26,162.24,11.88258288]
[1752534158688,147.9,162.25,162.24,11.88258288]
[1752534159782,147.9,162.25,162.23,6.41393475]
[1752534160099,147.9,162.25,162.23,11.88296685]
[1752534160910,147.9,162.25,162.23,11.63296685]
[1752534161994,31.1,162.24,162.23,11.63296685]
[1752534163207,179.0,162.25,162.23,11.63296685]
[1752534168193,179.69,162.25,162.23,11.63296685]
[1752534170399,179.0,162.25,162.24,5.4690321]
[1752534174490,179.69,162.25,162.24,5.4690321]
[1752534177013,179.69,162.25,162.24,3.4999026]
[1752534178709,147.9,162.25,162.24,9.91361068]
[1752534179093,147.96,162.25,162.24,9.66361068]
[1752534179294,147.96,162.25,162.24,9.91361068]
[1752534179815,147.96,162.25,162.24,9.66361068]
[1752534183610,147.96,162.25,162.24,9.91361068]
[1752534184218,147.96,162.25,162.24,9.66361068]
[1752534186101,147.96,162.25,162.24,3.4999026]
[1752534186611,148.68,162.25,162.24,3.4999026]
[1752534186803,179.74,162.25,162.22,6.19438999]
[1752534187024,179.74,162.25,162.22,9.69429259]
[1752534187025,0.72,162.24,162.22,9.69429259]
[1752534187515,0.72,162.24,162.23,3.4999026]
[1752534187714,0.72,162.24,162.22,6.19438999]
[1752534187715,0.72,162.24,162.22,3.5299026]
[1752534187930,0.72,162.24,162.22,9.69435647]
[1752534188221,0.72,162.24,162.22,3.5299026]
[1752534188624,0.72,162.23,162.22,0.03]
[1752534189012,0.72,162.23,162.22,3.5299026]
[1752534191304,0.72,162.23,162.22,0.03]
[1752534192640,0.72,162.23,162.22,3.5299026]
[1752534192807,31.78,162.24,162.22,3.5299026]
[1752534194120,147.9,162.23,162.22,3.5299026]
[1752534194512,148.62,162.23,162.22,3.5299026]
[1752534194832,148.62,162.23,162.22,0.03]
[1752534197416,148.62,162.23,162.22,3.5299026]
[1752534197903,148.62,162.23,162.22,0.03]
[1752534200910,147.9,162.23,162.22,3.5299026]
[1752534201319,148.62,162.23,162.22,3.5299026]
[1752534204538,148.62,162.23,162.22,0.03]
[1752534204719,27.16867459,162.23,162.21,0.2]
[1752534204925,216.10535532,162.22,162.21,0.2]
[1752534205242,218.4144327,162.22,162.21,0.2]
[1752534205407,213.79746422,162.22,162.21,0.2]
[1752534205807,213.79198899,162.22,162.21,0.2]
[1752534206039,219.95645699,162.22,162.21,0.2]
[1752534206330,215.3443706,162.22,162.21,0.2]
[1752534207034,217.31804578,162.22,162.21,0.2]
[1752534209030,69.41804578,162.22,162.21,0.2]
[1752534210942,86.20272975,162.22,162.21,0.2]
[1752534211149,86.20272975,162.22,162.2,0.03]
[1752534211150,173.67,162.2,162.16,0.03]
[1752534211451,5.47357778,162.17,162.16,0.03]
[1752534211651,36.53357778,162.17,162.16,0.03]
[1752534211857,37.24357778,162.17,162.16,0.03]
[1752534212553,43.4099464,162.17,162.16,0.03]
[1752534212742,57.79,162.17,162.16,0.03]
[1752534213128,31.08,162.17,162.16,0.03]
[1752534214538,31.79,162.17,162.16,0.03]
[1752534215847,31.77,162.17,162.16,0.03]
[1752534216148,31.06,162.17,162.16,0.03]
[1752534218359,147.67,162.19,162.16,11.67032666]
[1752534218546,147.67,162.19,162.18,5.47357778]
[1752534218860,147.67,162.19,162.18,5.75357778]
[1752534219863,147.67,162.19,162.18,11.91956618]
[1752534223863,148.38,162.19,162.17,11.6398003]
[1752534224038,179.46,162.19,162.17,11.6398003]
[1752534224235,178.75,162.19,162.18,5.47357778]
[1752534224447,147.67,162.19,162.18,5.47357778]
[1752534225460,148.38,162.19,162.17,11.6398003]
[1752534225861,148.38,162.19,162.18,5.47357778]
[1752534226249,147.67,162.19,162.18,5.47357778]
[1752534227869,148.38,162.19,162.18,5.47357778]
[1752534228170,148.38,162.19,162.18,11.63956618]
[1752534228371,147.67,162.19,162.18,11.63956618]
[1752534230387,148.38,162.19,162.18,5.47357778]
[1752534232589,148.38,162.19,162.18,11.63956618]
[1752534233786,148.38,162.19,162.18,5.47357778]
[1752534235192,148.38,162.19,162.17,11.63978493]
[1752534236201,148.38,162.19,162.18,5.47357778]
[1752534236792,147.67,162.19,162.18,5.47357778]
[1752534236998,148.38,162.19,162.18,5.47357778]
[1752534238595,148.38,162.19,162.18,11.63956618]
[1752534240694,147.67,162.19,162.18,11.63956618]
[1752534243899,148.39,162.19,162.18,11.63956618]
[1752534244276,148.39,162.19,162.18,6.1659884]
[1752534244575,148.39,162.19,162.18,11.63956618]
[1752534246898,148.39,162.19,162.18,11.66956618]
[1752534250398,148.39,162.19,162.18,0.03]
[1752534250699,179.45,162.19,162.18,0.03]
[1752534250893,184.92357778,162.19,162.18,0.03]
[1752534251093,182.95361749,162.19,162.18,0.03]
[1752534251493,189.11922572,162.19,162.18,0.03]
[1752534252500,179.45,162.19,162.18,0.03]
[1752534253408,31.78,162.19,162.18,0.03]
[1752534253622,31.84,162.2,162.18,5.50287998]
[1752534254188,0.78,162.2,162.19,5.47287998]
[1752534255313,0.78,162.2,162.18,5.50287998]
[1752534256291,0.78,162.2,162.18,0.03]
[1752534256502,0.78,162.2,162.18,5.50287998]
[1752534257009,0.72,162.19,162.18,5.50287998]
[1752534261209,0.72,162.19,162.18,11.66886838]
[1752534261509,0.06,162.2,162.18,11.66886838]
[1752534261712,0.78,162.2,162.18,6.1959884]
[1752534261916,0.78,162.2,162.19,5.47287998]
[1752534262089,0.06,162.2,162.19,5.47287998]
[1752534262715,0.78,162.2,162.19,5.47287998]
[1752534263912,0.78,162.2,162.18,5.50287998]
[1752534265395,0.06,162.2,162.18,5.50287998]
[1752534265596,0.72,162.19,162.18,5.50287998]
[1752534265799,0.72,162.19,162.18,0.03]
[1752534266296,31.78,162.19,162.18,0.03]
[1752534268811,43.41848821,162.19,162.18,0.03]
[1752534269018,37.25287998,162.19,162.18,0.03]
[1752534269213,43.41848821,162.19,162.18,0.03]
[1752534274124,0.72,162.19,162.18,0.03]
[1752534274427,31.78,162.19,162.18,0.03]
[1752534282148,37.94560823,162.19,162.18,0.03]
[1752534283147,43.41848821,162.19,162.18,0.03]
[1752534288238,60.20317218,162.19,162.18,0.03]
[1752534288441,64.81611754,162.19,162.18,0.03]
[1752534289545,60.20317218,162.19,162.18,0.03]
[1752534289752,64.81524551,162.19,162.18,0.03]
[1752534291441,173.87,162.17,162.16,0.03]
[1752534291645,210.40287998,162.17,162.16,0.03]
[1752534291952,211.10287998,162.17,162.16,0.03]
[1752534293657,217.2692486,162.17,162.16,0.03]
[1752534294645,69.3992486,162.17,162.16,0.03]
[1752534298964,67.43194349,162.17,162.16,0.03]
[1752534301768,58.21662746,162.17,162.16,0.03]
[1752534301963,41.43194349,162.17,162.16,0.03]
[1752534302146,67.43194349,162.17,162.16,0.03]
[1752534308472,63.92636862,162.17,162.16,0.03]
[1752534308645,67.43194349,162.17,162.16,0.03]
[1752534313080,63.92636862,162.17,162.16,0.03]
[1752534313379,67.43194349,162.17,162.16,0.03]
[1752534316672,84.21662746,162.17,162.16,0.03]
[1752534322770,80.71105259,162.17,162.16,0.03]
[1752534323093,84.21662746,162.17,162.16,0.03]
[1752534326374,66.73194349,162.17,162.16,0.03]
[1752534327090,67.43194349,162.17,162.16,0.03]
[1752534327468,66.73194349,162.17,162.16,0.03]
[1752534327785,63.22636862,162.17,162.16,0.03]
[1752534328290,63.93636862,162.17,162.16,0.03]
[1752534328993,67.44194349,162.17,162.16,0.03]
[1752534331089,63.93636862,162.17,162.16,0.03]
[1752534331277,67.44194349,162.17,162.16,0.03]
[1752534332599,72.059474,162.17,162.16,0.03]
[1752534339890,72.06068892,162.17,162.16,0.03]
[1752534341597,88.84537289,162.17,162.16,0.03]
[1752534343588,147.84,162.15,162.14,0.03]
[1752534343777,39.18479392,162.15,162.14,0.03]
[1752534344083,39.89479392,162.15,162.14,0.03]
[1752534344286,42.20433793,162.15,162.14,0.03]
[1752534344799,48.37146713,162.15,162.14,0.03]
[1752534348292,62.84660709,162.15,162.14,0.03]
[1752534348984,62.8458106,162.15,162.14,0.03]
[1752534349188,61.64953329,162.15,162.14,0.03]
[1752534349402,65.15509696,162.15,162.14,0.03]
[1752534352106,173.87,162.13,162.11,0.03]
[1752534352277,34.56557487,162.12,162.11,0.03]
[1752534352478,41.44384528,162.12,162.11,0.03]
[1752534359806,58.22852925,162.12,162.11,0.03]
[1752534367119,62.83907333,162.12,162.06,0.28]
[1752534367308,3.50557487,162.09,162.05,1.485]
[1752534367507,31.06,162.08,162.05,4.99057487]
[1752534367722,147.9,162.07,162.05,4.99057487]
[1752534367906,31.06,162.06,162.05,1.485]
[1752534368103,31.06,162.06,162.05,11.16150976]
[1752534368622,178.96,162.07,162.05,11.16150976]
[1752534368802,147.9,162.07,162.06,3.50557487]
[1752534369823,147.9,162.07,162.05,7.65593489]
[1752534370021,147.9,162.07,162.06,3.50557487]
[1752534371029,147.9,162.07,162.06,9.67612898]
[1752534376932,147.9,162.07,162.06,3.50557487]
[1752534377334,147.9,162.07,162.06,3.53557487]
[1752534379635,147.9,162.07,162.06,0.03]
[1752534379843,147.9,162.07,162.06,3.53557487]
[1752534384643,148.57,162.07,162.06,0.03]
[1752534387437,147.9,162.07,162.06,0.03]
[1752534387935,147.9,162.07,162.06,3.53557487]
[1752534390828,178.96,162.07,162.06,3.53557487]
[1752534391648,179.62,162.07,162.06,0.03]
[1752534391946,179.62,162.07,162.06,3.53557487]
[1752534394053,179.62,162.07,162.06,0.03]
[1752534394640,185.79017338,162.07,162.06,0.03]
[1752534394842,179.62,162.07,162.06,0.03]
[1752534395356,31.72,162.07,162.06,0.03]
[1752534395859,37.89017338,162.07,162.06,0.03]
[1752534397556,31.06,162.07,162.06,0.03]
[1752534397857,31.06,162.07,162.06,3.53557487]
[1752534398034,31.72,162.07,162.06,0.03]
[1752534399664,31.78,162.07,162.06,0.03]
[1752534400158,37.95017338,162.07,162.06,0.03]
[1752534404762,41.45574825,162.07,162.06,0.03]
[1752534405150,37.95017338,162.07,162.06,0.03]
[1752534406465,31.78,162.07,162.06,0.03]
[1752534411848,31.12,162.07,162.06,0.03]
[1752534412054,31.12,162.07,162.06,3.53557487]
[1752534412671,31.78,162.07,162.06,3.53557487]
[1752534413575,31.78,162.07,162.06,0.03]
[1752534416481,31.78,162.07,162.01,0.2]
[1752534416482,16.78468397,162.06,162.01,0.2]
[1752534416681,3.50557487,162.02,162.01,0.2]
[1752534416975,31.06,162.02,162.01,0.2]
[1752534417170,31.72,162.02,162.01,0.2]
[1752534417865,31.06,162.02,162.01,0.2]
[1752534419168,6.88095499,162.05,162.01,3.70557487]
[1752534419377,31.79,162.04,162.01,3.70557487]
[1752534419554,31.08,162.03,162.01,3.70557487]
[1752534420184,31.08,162.03,162.01,0.2]
[1752534420473,31.08,162.03,162.01,6.37241959]
[1752534420784,0.71,162.04,162.01,3.70557487]
[1752534420981,31.08,162.03,162.01,3.70557487]
[1752534421160,31.79,162.03,162.01,3.70557487]
[1752534422054,31.79,162.03,162.01,9.87799083]
[1752534422281,31.79,162.03,162.01,6.37241596]
[1752534422461,31.79,162.03,162.01,3.70557487]
[1752534422662,31.79,162.03,162.01,9.87799483]
[1752534422993,148.61,162.05,162.02,3.50557487]
[1752534423160,0.71,162.04,162.03,3.50557487]
[1752534424595,0.71,162.04,162.01,6.37241996]
[1752534424892,0.71,162.04,162.03,3.50557487]
[1752534425178,0.71,162.04,162.02,3.50557487]
[1752534425982,0.71,162.04,162.03,3.50557487]
[1752534426885,0.71,162.04,162.01,6.37241996]
[1752534427079,0.71,162.04,162.03,3.50557487]
[1752534428978,0.71,162.04,162.03,9.67727146]
[1752534430195,0.71,162.04,162.03,3.50557487]
[1752534431599,0.71,162.04,162.02,6.17193485]
[1752534431769,0.71,162.04,162.03,3.50557487]
[1752534432190,31.79,162.04,162.03,3.50557487]
[1752534436995,31.79,162.04,162.03,3.50557487]
[1752534438209,31.79,162.04,162.02,6.17193485]
[1752534438504,31.08,162.04,162.03,3.50557487]
[1752534439007,0.71,162.04,162.03,3.50557487]
[1752534439183,31.77,162.04,162.03,3.50557487]
[1752534443590,0.71,162.04,162.02,3.50557487]
[1752534443779,0.71,162.03,162.02,3.50557487]
[1752534444399,0.71,162.03,162.01,3.70557487]
[1752534444578,0.71,162.03,162.02,3.50557487]
[1752534444904,31.77,162.04,162.02,3.50557487]
[1752534445596,147.9,162.03,162.02,3.50557487]
[1752534446505,148.61,162.03,162.02,3.50557487]
[1752534446806,148.61,162.03,162.01,6.37243213]
[1752534446807,148.61,162.03,162.01,3.70557487]
[1752534447007,0.71,162.02,162.01,3.70557487]
[1752534449593,148.62,162.03,162.01,3.70557487]
[1752534449774,148.62,162.03,162.01,9.87802232]
[1752534451203,147.9,162.03,162.02,9.67765239]
[1752534451374,147.9,162.03,162.02,9.73765239]
[1752534451570,147.9,162.03,162.02,9.67765239]
[1752534455388,148.62,162.03,162.02,9.67765239]
[1752534459001,147.9,162.03,162.02,9.67765239]
[1752534459302,0.06,162.07,162.02,9.67765239]
[1752534459303,0.06,162.07,162.06,26.0]
[1752534459479,0.06,162.07,162.04,6.0409]
[1752534459684,0.78,162.07,162.06,3.50557487]
[1752534459996,0.06,162.07,162.06,3.50557487]
[1752534460202,0.06,162.07,162.06,3.56557487]
[1752534460779,0.06,162.07,162.06,9.73612898]
[1752534460982,0.06,162.12,162.06,66.54311243]
[1752534461182,0.06,162.12,162.11,3.50557487]
[1752534463030,0.06,162.12,162.11,11.64293994]
[1752534464610,0.06,162.12,162.11,6.16865091]
[1752534464909,0.06,162.12,162.11,11.64293994]
[1752534466608,0.06,162.12,162.11,11.70293994]
[1752534468807,0.06,162.12,162.11,11.64293994]
[1752534468992,0.06,162.12,162.11,11.70293994]
[1752534469192,0.06,162.12,162.11,11.64293994]
[1752534472510,0.06,162.12,162.11,11.70293994]
[1752534473798,0.06,162.12,162.11,11.64293994]
[1752534476623,0.06,162.12,162.1,6.22903146]
[1752534476817,0.06,162.12,162.11,5.47428903]
[1752534477613,0.06,162.12,162.11,5.53428903]
[1752534478323,0.06,162.12,162.11,11.70293994]
[1752534478504,0.06,162.12,162.11,11.64293994]
[1752534479427,0.06,162.12,162.11,6.16865091]
[1752534479722,0.06,162.12,162.1,37.26903146]
[1752534479894,0.06,162.12,162.11,5.47428903]
[1752534482022,0.06,162.12,162.11,11.64293994]
[1752534484622,0.76,162.12,162.09,0.6169412]
[1752534484921,3.50689115,162.11,162.08,6.16953708]
[1752534485100,0.7,162.1,162.08,6.16953708]
[1752534485808,0.7,162.09,162.08,6.16953708]
[1752534486426,0.7,162.1,162.08,6.16953708]
[1752534487702,0.7,162.1,162.08,11.64857929]
[1752534488535,0.06,162.12,162.08,11.64857929]
[1752534488827,0.7,162.11,162.08,11.64857929]
[1752534489621,0.7,162.11,162.08,6.16953708]
[1752534489830,0.7,162.11,162.08,11.64857929]
[1752534490615,0.06,162.12,162.08,11.64857929]
[1752534490832,0.7,162.11,162.08,11.64857929]
[1752534492231,0.7,162.11,162.09,5.47904221]
[1752534493735,0.7,162.11,162.07,31.1]
[1752534493736,6.17904221,162.1,162.07,31.1]
[1752534493914,0.7,162.09,162.05,37.27093489]
[1752534494110,0.7,162.09,162.06,5.47904221]
[1752534494425,0.7,162.08,162.06,5.47904221]
[1752534494629,5.47904221,162.11,162.05,6.17093489]
[1752534494832,0.7,162.07,162.06,5.47904221]
[1752534495137,0.7,162.08,162.06,5.47904221]
[1752534496032,0.7,162.08,162.07,6.17017338]
[1752534497516,0.7,162.08,162.06,6.17055411]
[1752534500441,0.7,162.07,162.06,6.17055411]
[1752534500814,0.7,162.07,162.06,11.64959632]
[1752534501010,0.7,162.08,162.06,11.64959632]
[1752534501628,0.7,162.08,162.06,6.17055411]
[1752534501827,0.7,162.08,162.06,11.64959632]
[1752534503728,159.54781597,162.11,162.06,11.64959632]
[1752534503924,0.7,162.07,162.06,11.64959632]
[1752534504238,0.7,162.07,162.03,31.47904221]
[1752534504439,0.7,162.07,162.04,5.47904221]
[1752534505119,0.7,162.07,162.04,11.65027065]
[1752534508822,5.47904221,162.08,162.04,11.65027065]
[1752534509024,0.71,162.06,162.04,11.65027065]
[1752534510422,0.71,162.06,162.03,6.20169659]
[1752534510624,0.71,162.06,162.03,37.30169659]
[1752534510830,0.71,162.06,162.04,5.47904221]
[1752534511730,0.71,162.06,162.03,5.50904221]
[1752534513136,0.71,162.06,162.03,11.68059975]
[1752534514148,147.96,162.09,162.05,5.47904221]
[1752534514451,0.71,162.07,162.04,5.47904221]
[1752534514656,0.71,162.07,162.03,6.20155754]
[1752534514861,0.71,162.07,162.04,5.47904221]
[1752534515038,0.71,162.07,162.04,3.50813565]
[1752534515653,0.71,162.06,162.04,9.67937373]
[1752534519663,0.71,162.06,162.04,6.17123808]
[1752534519964,0.71,162.05,162.04,3.50813565]
[1752534520354,0.71,162.05,162.03,0.03]
[1752534521762,4.21813565,162.05,162.03,0.03]
[1752534522150,0.71,162.04,162.03,0.03]
[1752534527664,6.19346858,162.04,162.03,0.03]
[1752534527863,12.3647843,162.04,162.03,0.03]
[1752534528659,43.4447843,162.04,162.03,0.03]
[1752534531370,43.9447843,162.04,162.03,0.03]
[1752534532266,32.29,162.04,162.03,0.03]
[1752534536665,43.4447843,162.04,162.03,0.03]
[1752534538862,31.79,162.04,162.03,0.03]
[1752534539176,37.96131572,162.04,162.03,0.03]
[1752534539651,43.4447843,162.04,162.03,0.03]
[1752534542052,43.9447843,162.04,162.03,0.03]
[1752534542980,41.97111152,162.04,162.03,0.03]
[1752534545371,38.46131572,162.04,162.03,0.03]
[1752534545983,1.21,162.04,162.03,3.5397958]
[1752534546170,32.29,162.04,162.03,3.5397958]
[1752534546372,31.58,162.04,162.03,3.5397958]
[1752534546758,0.5,162.04,162.03,3.5397958]
[1752534547082,31.1,162.05,162.03,5.51124124]
[1752534547381,31.1,162.05,162.04,5.48124124]
[1752534547568,179.71,162.05,162.04,5.48124124]
[1752534547766,147.9,162.05,162.04,11.65255696]
[1752534551779,147.9,162.05,162.04,6.17131572]
[1752534552085,147.9,162.05,162.04,11.65255696]
[1752534554577,147.9,162.05,162.03,6.20169659]
[1752534555083,147.9,162.05,162.04,5.48124124]
[1752534555280,148.61,162.05,162.04,5.48124124]
[1752534555589,148.61,162.05,162.03,6.20169659]
[1752534555895,0.71,162.04,162.03,0.03]
[1752534560394,179.0,162.05,162.03,5.51124124]
[1752534560619,179.71,162.05,162.03,5.51124124]
[1752534560779,179.71,162.05,162.03,11.6827084]
[1752534561697,179.0,162.05,162.03,11.6827084]
[1752534561904,0.71,162.04,162.03,11.6827084]
[1752534562196,179.71,162.05,162.03,11.6827084]
[1752534564180,179.71,162.05,162.03,5.51124124]
[1752534564801,0.71,162.04,162.03,5.51124124]
[1752534564999,0.71,162.04,162.03,0.03]
[1752534569703,0.71,162.04,162.03,5.51124124]
[1752534570391,0.71,162.04,162.03,11.68293783]
[1752534571003,0.71,162.04,162.03,9.71004684]
[1752534571205,0.71,162.04,162.03,3.53835025]
[1752534571593,0.71,162.04,162.03,0.03]
[1752534583822,6.88131572,162.04,162.03,0.03]
[1752534584025,0.71,162.04,162.03,0.03]
[1752534584830,4.21835025,162.04,162.03,0.03]
[1752534585917,10.38966597,162.04,162.03,0.03]
[1752534588624,31.79,162.04,162.03,0.03]
[1752534595833,31.79,162.04,162.03,5.51276677]
[1752534596133,31.79,162.05,162.03,5.51276677]
[1752534598729,0.06,162.07,162.03,11.68429346]
[1752534599035,0.72,162.06,162.05,5.48276677]
[1752534599216,0.72,162.06,162.04,5.48276677]
[1752534599829,148.62,162.06,162.04,5.48276677]
[1752534601435,148.62,162.06,162.04,11.65406565]
[1752534601614,0.72,162.05,162.04,11.65406565]
[1752534602307,0.72,162.05,162.03,6.20156293]
[1752534602505,0.72,162.05,162.04,5.48276677]
[1752534603539,147.9,162.06,162.04,11.65408249]
[1752534603714,148.62,162.06,162.04,11.65408249]
[1752534606641,0.72,162.05,162.04,11.65408249]
[1752534606809,147.9,162.06,162.04,11.65408249]
[1752534607016,148.62,162.06,162.04,11.65408249]
[1752534607732,147.9,162.06,162.05,5.48276677]
[1752534609033,147.9,162.06,162.05,11.65370166]
[1752534609239,147.9,162.06,162.05,11.71370166]
[1752534610428,147.9,162.06,162.05,11.65370166]
[1752534611040,148.62,162.06,162.05,11.65370166]
[1752534611244,147.9,162.06,162.05,11.65370166]
[1752534613046,147.9,162.06,162.04,6.17131572]
[1752534613343,147.9,162.06,162.05,3.50731595]
[1752534615843,147.9,162.06,162.05,9.67825084]
[1752534619553,148.62,162.06,162.05,9.67825084]
[1752534619846,147.9,162.06,162.05,9.67825084]
[1752534621255,148.62,162.06,162.05,9.67825084]
[1752534625260,147.9,162.06,162.05,9.67825084]
[1752534626040,148.62,162.06,162.05,9.67825084]
[1752534628036,147.9,162.06,162.05,9.67825084]
[1752534628659,148.58,162.06,162.05,9.67825084]
[1752534631066,148.58,162.06,162.05,6.17093489]
[1752534631368,148.58,162.06,162.05,9.67825084]
[1752534632346,148.58,162.06,162.05,3.50731595]
[1752534633975,148.58,162.06,162.05,9.67825084]
[1752534636658,148.58,162.06,162.05,3.50731595]
[1752534638367,148.58,162.06,162.05,9.67825084]
[1752534638855,147.9,162.06,162.05,9.67825084]
[1752534641371,147.9,162.06,162.05,9.70825084]
[1752534641567,148.58,162.06,162.05,9.70825084]
[1752534642065,148.58,162.06,162.05,6.20093489]
[1752534642369,179.64,162.06,162.05,0.03]
[1752534643872,31.74,162.06,162.05,0.03]
[1752534653187,0.68,162.06,162.05,0.03]
[1752534656988,31.8,162.07,162.05,3.53731595]
[1752534657165,0.74,162.07,162.06,3.50731595]
[1752534658272,0.74,162.07,162.05,3.53731595]
[1752534658675,0.74,162.07,162.05,9.70804136]
[1752534659180,0.77,162.07,162.06,3.50731595]
[1752534659973,0.77,162.07,162.05,9.70804136]
[1752534660698,0.77,162.07,162.06,3.50731595]
[1752534661699,148.67,162.07,162.06,3.50731595]
[1752534662072,148.67,162.07,162.05,3.53731595]
[1752534662376,0.71,162.06,162.05,3.53731595]
[1752534662576,0.71,162.06,162.05,0.03]
[1752534665195,0.71,162.06,162.05,3.53731595]
[1752534665378,148.67,162.07,162.05,9.7081599]
[1752534665724,147.96,162.07,162.06,3.50731595]
[1752534666294,148.67,162.07,162.06,3.50731595]
[1752534666499,148.67,162.07,162.05,6.20084395]
[1752534666700,148.67,162.07,162.06,3.50731595]
[1752534668176,147.96,162.07,162.06,9.67787006]
[1752534670480,0.06,162.07,162.06,9.67787006]
[1752534679089,0.77,162.07,162.05,0.03]
[1752534681320,4.27731595,162.07,162.05,0.03]
[1752534681702,0.71,162.06,162.05,0.03]
[1752534690530,4.21731595,162.06,162.05,0.03]
[1752534690907,0.71,162.06,162.05,0.03]
[1752534692062,188.69763612,162.07,162.05,3.53731595]
[1752534692063,147.96,162.07,162.05,3.53731595]
[1752534692363,147.96,162.07,162.06,3.50731595]
[1752534694127,0.06,162.07,162.06,3.50731595]